bitfinex-derivatives/quotes_BTCF0:USTF0_20251219
["timestamp","ask_amount","ask_price","bid_price","bid_amount"]
[1766129240969,0.00017052,87998.0,87982.0,0.00576]
[1766129242473,0.00017052,87998.0,87983.0,0.011372]
[1766129242774,0.00017052,87998.0,87981.0,0.00017052]
[1766129242976,0.00017052,87998.0,87984.0,0.00576]
[1766129243976,0.00017052,87998.0,87984.0,0.0171318]
[1766129244174,2e-08,87998.0,87984.0,0.00576]
[1766129244377,2e-08,87998.0,87984.0,0.0171319]
[1766129244765,0.00576002,87998.0,87981.0,0.00017052]
[1766129250882,0.00576002,87998.0,87981.0,0.01154272]
[1766129252175,2e-08,87998.0,87984.0,0.0113719]
[1766129253282,2e-08,87998.0,87987.0,0.0113714]
[1766129253984,2e-08,87998.0,87990.0,0.011371]
[1766129254584,2e-08,87998.0,87986.0,0.0113715]
[1766129254784,2e-08,87998.0,87989.0,0.0113712]
[1766129254984,2e-08,87998.0,87991.0,0.0113709]
[1766129255181,7.28248552,88000.0,87997.0,0.0113702]
[1766129255381,4.18937745,88000.0,87997.0,0.0113702]
[1766129255683,3.19129665,88000.0,87990.0,0.0113711]
[1766129255883,3.19129665,88000.0,87990.0,0.30251079]
[1766129256086,3.19129665,88000.0,87993.0,0.0113707]
[1766129256383,3.19129665,88000.0,87993.0,0.0170907]
[1766129256578,3.19129665,88000.0,87993.0,0.00572]
[1766129258083,3.19129665,88000.0,87981.0,0.00017052]
[1766129258291,3.48243634,88000.0,87982.0,0.00572]
[1766129258489,3.48243634,88000.0,87983.0,0.011372]
[1766129259376,3.49380614,88000.0,87982.0,0.00572]
[1766129259678,3.19129665,88000.0,87982.0,0.00572]
[1766129259880,3.48243634,88000.0,87983.0,0.00572]
[1766129260077,3.49380624,88000.0,87983.0,0.00572]
[1766129260278,3.48243634,88000.0,87983.0,0.00572]
[1766129261381,3.19129665,88000.0,87983.0,0.00572]
[1766129261581,3.48243634,88000.0,87984.0,0.0113719]
[1766129261785,3.48243634,88000.0,87987.0,0.0113714]
[1766129261786,3.19129665,88000.0,87987.0,0.0113714]
[1766129262576,3.19129665,88000.0,87981.0,0.00017052]
[1766129262881,0.0113722,87982.0,87954.0,0.0213757]
[1766129263076,0.58227938,87991.0,87954.0,0.0213757]
[1766129263077,0.29113969,87970.0,87954.0,0.01]
[1766129263298,0.29113969,87970.0,87955.0,0.00572]
[1766129263479,0.29113969,87970.0,87954.0,0.01]
[1766129263675,0.29113969,87970.0,87955.0,0.00572]
[1766129264188,0.29685969,87970.0,87955.0,0.00572]
[1766129264890,0.29685969,87970.0,87958.0,0.0113752]
[1766129264891,0.00572,87970.0,87958.0,0.0113752]
[1766129266090,0.00572,87970.0,87955.0,0.00572]
[1766129267588,0.30823349,87970.0,87955.0,0.00572]
[1766129267787,0.30823349,87970.0,87954.0,0.00572]
[1766129267986,0.30823349,87970.0,87952.0,0.00292]
[1766129268301,0.30823349,87970.0,87952.0,0.00128]
[1766129269097,0.30823349,87970.0,87952.0,5.2e-07]
[1766129269290,0.0113741,87967.0,87952.0,5.2e-07]
[1766129269597,0.0113741,87967.0,87933.0,0.0399172]
[1766129269598,0.29113969,87962.0,87934.0,2.41895693]
[1766129269895,0.29113969,87960.0,87937.0,0.00572]
[1766129270198,0.0113755,87957.0,87938.0,4.34e-06]
[1766129270401,0.00572,87956.0,87938.0,4.34e-06]
[1766129270586,0.00572,87956.0,87938.0,0.00017486]
[1766129270587,9.93e-05,87955.0,87938.0,0.00017486]
[1766129272087,9.93e-05,87955.0,87940.0,0.29113969]
[1766129272396,9.93e-05,87955.0,87940.0,0.30251719]
[1766129273484,9.93e-05,87955.0,87940.0,0.0113775]
[1766129273689,9.93e-05,87955.0,87938.0,0.00017486]
[1766129273994,9.93e-05,87955.0,87925.0,0.0399172]
[1766129273995,0.0113768,87947.0,87929.0,0.0048]
[1766129274293,9.93e-05,87955.0,87915.0,0.05997937]
[1766129274294,0.29122112,87940.0,87921.0,0.02999693]
[1766129274499,0.00586216,87939.0,87922.0,0.00572]
[1766129274996,0.00586216,87939.0,87922.0,0.00589052]
[1766129274997,0.00603268,87939.0,87922.0,0.00589052]
[1766129275197,0.01741048,87939.0,87922.0,0.00589052]
[1766129275787,0.01741048,87939.0,87922.0,5.2e-07]
[1766129275987,0.01741048,87939.0,87918.0,0.00572]
[1766129276889,0.01741048,87939.0,87920.0,0.00011401]
[1766129277294,0.00603268,87939.0,87920.0,0.00011401]
[1766129278893,0.00603268,87939.0,87918.0,0.00023401]
[1766129279198,0.0113779,87938.0,87918.0,0.00023401]
[1766129279798,0.00603268,87939.0,87918.0,0.00023401]
[1766129280094,0.00603268,87939.0,87926.0,0.0113794]
[1766129280393,0.003,87938.0,87922.0,0.0113799]
[1766129280898,0.00031268,87939.0,87918.0,0.00023401]
[1766129280899,0.00191268,87939.0,87918.0,0.00023401]
[1766129281099,0.00191268,87939.0,87927.0,0.0113791]
[1766129281285,0.00031268,87939.0,87927.0,0.0113791]
[1766129281484,0.00031268,87939.0,87926.0,0.00572]
[1766129281699,8e-08,87939.0,87926.0,0.00572]
[1766129281996,8e-08,87939.0,87930.0,0.0113787]
[1766129283494,8e-08,87939.0,87926.0,0.00589044]
[1766129283689,8e-08,87939.0,87930.0,0.0113788]
[1766129283892,8e-08,87939.0,87933.0,0.0113784]
[1766129284094,8e-08,87939.0,87929.0,0.0113789]
[1766129284404,8e-08,87939.0,87926.0,0.00589044]
[1766129285304,8e-08,87939.0,87926.0,0.01726984]
[1766129285498,8e-08,87939.0,87926.0,0.00589044]
[1766129285904,8e-08,87939.0,87926.0,0.01726984]
[1766129286703,8e-08,87939.0,87926.0,0.00589044]
[1766129288000,8e-08,87939.0,87936.0,0.011378]
[1766129290708,8e-08,87939.0,87934.0,0.00572]
[1766129290709,0.0113738,87970.0,87945.0,0.0113769]
[1766129290904,0.00572,87967.0,87945.0,0.0113769]
[1766129291205,0.00572,87966.0,87945.0,0.0113769]
[1766129291507,0.00572,87966.0,87947.0,0.0113766]
[1766129291702,0.00017052,87965.0,87948.0,0.00017052]
[1766129292909,0.00017052,87965.0,87951.0,0.0113773]
[1766129293709,0.00017052,87965.0,87948.0,0.00017052]
[1766129294717,0.0113767,87956.0,87919.0,2.38996]
[1766129294906,0.00572,87955.0,87936.0,0.0113792]
[1766129295211,0.00572,87955.0,87935.0,0.0113793]
[1766129295509,0.00572,87955.0,87933.0,0.00572]
[1766129295702,0.00017052,87953.0,87933.0,0.00572]
[1766129296211,0.0113773,87952.0,87933.0,0.00572]
[1766129296711,0.0113773,87952.0,87926.0,0.0113805]
[1766129296909,0.00017052,87953.0,87927.0,0.00324]
[1766129298304,0.0113778,87948.0,87927.0,0.00324]
[1766129299915,0.01154762,87953.0,87927.0,0.00324]
[1766129300310,0.01154762,87953.0,87917.0,0.01]
[1766129300311,0.0113789,87939.0,87917.0,0.01]
[1766129300511,0.0113789,87939.0,87923.0,0.00324]
[1766129300706,0.0056,87943.0,87921.0,0.00316]
[1766129302213,0.0113788,87940.0,87921.0,0.00316]
[1766129302409,0.0056,87943.0,87921.0,0.00316]
[1766129303521,0.0113786,87942.0,87921.0,0.00316]
[1766129304313,0.0056,87943.0,87921.0,0.00316]
[1766129305221,0.0169784,87943.0,87917.0,0.01]
[1766129305421,0.0113787,87941.0,87917.0,0.01]
[1766129305622,0.0056,87943.0,87917.0,0.01]
[1766129305922,0.0056,87943.0,87923.0,0.0113808]
[1766129306118,0.0056,87943.0,87918.0,0.0113815]
[1766129307924,0.00552,87951.0,87917.0,0.01]
[1766129308223,0.00552,87951.0,87926.0,0.0113804]
[1766129308519,0.00552,87951.0,87928.0,0.0113802]
[1766129308724,0.00552,87951.0,87930.0,0.0113799]
[1766129310015,0.00552,87951.0,87929.0,0.00368]
[1766129310620,0.0113775,87950.0,87929.0,0.00368]
[1766129311819,0.00552,87951.0,87929.0,0.00368]
[1766129312019,0.0168974,87951.0,87929.0,0.00368]
[1766129313622,0.00552,87951.0,87929.0,0.0150601]
[1766129314922,0.00552,87951.0,87929.0,0.00368]
[1766129315223,0.00552,87951.0,87930.0,0.01138]
[1766129315523,0.00552,87951.0,87930.0,0.30263031]
[1766129316229,0.0168973,87951.0,87930.0,0.29125031]
[1766129316727,0.00552,87951.0,87930.0,0.29125031]
[1766129316927,0.00552,87951.0,87930.0,0.30263021]
[1766129318229,0.00552,87951.0,87933.0,0.0113796]
[1766129318416,0.00552,87951.0,87937.0,0.0113791]
[1766129318617,0.00552,87951.0,87937.0,0.0170991]
[1766129318828,0.00552,87951.0,87937.0,0.00572]
[1766129326033,0.00017052,87953.0,87941.0,0.0113785]
[1766129326034,5.2e-07,87953.0,87941.0,0.0113785]
[1766129326725,5.2e-07,87953.0,87938.0,0.0113789]
[1766129328230,5.2e-07,87953.0,87944.0,0.0113782]
[1766129328439,5.2e-07,87953.0,87947.0,0.0113778]
[1766129328822,5.2e-07,87953.0,87950.0,0.0113773]
[1766129329132,0.29125031,87980.0,87955.0,0.0113767]
[1766129329133,0.00572,87976.0,87955.0,0.0113767]
[1766129329331,0.00572,87976.0,87958.0,0.0113764]
[1766129329632,0.00572,87976.0,87959.0,0.00368]
[1766129330022,0.0113742,87975.0,87959.0,0.00385052]
[1766129332044,0.00017052,87976.0,87959.0,0.00385052]
[1766129332341,0.0113743,87975.0,87959.0,0.00385052]
[1766129333542,0.00017052,87976.0,87959.0,0.00385052]
[1766129334147,0.00017052,87976.0,87960.0,0.0113761]
[1766129334340,0.0113743,87975.0,87959.0,0.00385052]
[1766129335243,0.00017052,87976.0,87960.0,0.30262641]
[1766129335438,0.01154472,87976.0,87959.0,0.00385052]
[1766129336342,0.0113746,87972.0,87959.0,0.00385052]
[1766129337741,0.00017052,87976.0,87959.0,0.00385052]
[1766129338440,0.0113743,87975.0,87959.0,0.00385052]
[1766129338841,0.01154462,87976.0,87959.0,0.00385052]
[1766129340140,0.0113745,87973.0,87959.0,0.00385052]
[1766129340846,0.0113742,87975.0,87959.0,0.00385052]
[1766129341737,3.20267085,87975.0,87959.0,0.00385052]
[1766129343352,3.19129665,87975.0,87959.0,0.00385052]
[1766129346141,2.24173515,87975.0,87972.0,0.0113745]
[1766129346344,8e-08,87978.0,87974.0,0.0113743]
[1766129346541,8e-08,87978.0,87976.0,0.0113741]
[1766129346943,0.29110972,88000.0,87983.0,0.0113731]
[1766129347138,0.00572,88003.0,87984.0,0.00572]
[1766129347343,0.00017052,88002.0,87985.0,0.00017052]
[1766129348545,0.0113711,87999.0,87985.0,0.00017052]
[1766129350551,0.30248072,88000.0,87985.0,0.00017052]
[1766129351648,0.011371,88000.0,87985.0,0.00017052]
[1766129351857,0.29110972,88000.0,87985.0,0.00017052]
[1766129353345,0.30248082,88000.0,87985.0,0.00017052]
[1766129353540,0.0113715,87997.0,87985.0,0.00017052]
[1766129354052,0.0113715,87997.0,87960.0,2.68058972]
[1766129354053,0.58221944,87995.0,87947.0,2.38908]
[1766129354353,0.00572,87996.0,87955.0,0.00572]
[1766129354354,0.29110972,87970.0,87955.0,0.00572]
[1766129354945,0.00572,87977.0,87955.0,0.00572]
[1766129354946,0.00017052,87971.0,87955.0,0.00572]
[1766129355756,0.00017052,87971.0,87954.0,0.01017052]
[1766129356053,0.00017052,87971.0,87955.0,0.00572]
[1766129356647,0.00017052,87971.0,87959.0,0.0113762]
[1766129357045,0.00017052,87971.0,87955.0,0.0170968]
[1766129357762,0.00017052,87971.0,87955.0,0.00572]
[1766129358356,0.00017052,87971.0,87956.0,0.0113766]
[1766129358858,0.00017052,87971.0,87955.0,0.0170967]
[1766129359048,0.00017052,87971.0,87958.0,0.0113764]
[1766129359353,0.00017052,87971.0,87955.0,0.00572]
[1766129359560,0.00017052,87971.0,87956.0,0.0113766]
[1766129361556,0.00017052,87971.0,87959.0,0.0113762]
[1766129362159,0.00017052,87971.0,87962.0,0.0113759]
[1766129362353,0.00017052,87971.0,87963.0,0.00572]
[1766129362553,0.00017052,87971.0,87964.0,0.0113756]
[1766129362759,2e-08,87971.0,87967.0,0.0113752]
[1766129363654,0.06118358,88001.0,87984.0,0.0113729]
[1766129363860,0.06118358,88001.0,87966.0,2.3892]
[1766129363861,0.29110972,88000.0,87985.0,0.00572]
[1766129365463,2e-08,88001.0,87990.0,0.29110972]
[1766129365763,2e-08,88001.0,87997.0,0.0113713]
[1766129365962,2e-08,88001.0,87998.0,0.00572]
[1766129367455,2e-08,88001.0,87998.0,0.0170912]
[1766129369659,0.06118358,88019.0,87998.0,0.00572]
[1766129369856,0.06118358,88021.0,88008.0,0.29110972]
[1766129370056,0.06118358,88021.0,88009.0,0.00572]
[1766129370261,0.06118358,88022.0,88009.0,0.00572]
[1766129370667,0.00017052,88022.0,88009.0,0.00572]
[1766129371761,0.00017052,88022.0,88009.0,0.0170897]
[1766129372464,0.00017052,88022.0,88009.0,0.00572]
[1766129374461,0.01,88024.0,88009.0,0.00572]
[1766129377168,0.01,88024.0,88005.0,0.00017052]
[1766129377471,0.00572,88029.0,88019.0,0.0113684]
[1766129377675,0.00572,88037.0,88018.0,0.0131286]
[1766129378164,0.00572,88038.0,88018.0,0.0131286]
[1766129378561,0.00572,88038.0,88019.0,0.00017042]
[1766129378562,0.00017042,88037.0,88019.0,0.00017042]
[1766129378870,0.0113664,88036.0,88017.0,0.00032]
[1766129379566,0.0113663,88036.0,88017.0,0.00032]
[1766129379761,0.08173061,88037.0,88018.0,0.00017042]
[1766129379961,0.0113664,88036.0,87990.0,0.30219448]
[1766129380164,0.0113664,88036.0,87997.0,0.00572]
[1766129380364,0.0113664,88036.0,87990.0,0.30219448]
[1766129380365,0.30218948,88030.0,87990.0,0.29082228]
[1766129380571,0.30218948,88030.0,87992.0,2.39408]
[1766129380765,0.30218948,88030.0,87993.0,2.39408]
[1766129380965,0.00017042,88020.0,88003.0,0.00017042]
[1766129381271,0.00017042,88020.0,88004.0,0.00572]
[1766129382870,0.00017042,88020.0,88005.0,0.0113703]
[1766129383384,0.00017042,88020.0,88008.0,0.0113699]
[1766129383968,0.00017042,88020.0,88003.0,0.01154092]
[1766129384169,0.29082228,88013.0,88003.0,4.2e-07]
[1766129384467,0.0113694,88012.0,87993.0,0.00152]
[1766129384667,0.29082228,88013.0,87993.0,0.00152]
[1766129385072,0.29654228,88013.0,87993.0,0.00152]
[1766129385270,0.29654228,88013.0,87994.0,0.00017042]
[1766129385474,0.00572,88013.0,87994.0,0.00017042]
[1766129385972,0.29082228,88010.0,87994.0,0.00017042]
[1766129386969,0.29082228,88010.0,87994.0,0.00589042]
[1766129388667,0.00572,88013.0,87994.0,0.00589042]
[1766129389070,0.00572,88013.0,87995.0,0.0113715]
[1766129389270,0.00572,88013.0,87998.0,0.0113711]
[1766129389471,0.00572,88013.0,87994.0,0.00589042]
[1766129390472,0.0170894,88013.0,87994.0,0.00589042]
[1766129390677,0.0170894,88013.0,87994.0,4.2e-07]
[1766129391477,0.00572,88013.0,87994.0,4.2e-07]
[1766129391679,0.00572,88013.0,87995.0,0.00017042]
[1766129393370,0.00572,88013.0,87996.0,0.0113714]
[1766129394479,0.06134418,88009.0,87996.0,0.0113714]
[1766129394666,0.06134418,88009.0,87995.0,0.00017042]
[1766129395876,0.06134418,88009.0,80901.0,0.01161345]
[1766129395877,0.35228984,88005.0,87971.0,0.0113746]
[1766129396078,0.29094566,87990.0,87969.0,2.38832]
[1766129396273,0.29094566,87990.0,87974.0,0.00072]
[1766129396483,0.29094566,87990.0,87974.0,0.00572]
[1766129397377,0.00017042,87991.0,87974.0,0.00456]
[1766129397571,0.00017042,87991.0,87969.0,0.0113749]
[1766129397770,0.00017042,87991.0,87974.0,0.00396]
[1766129398479,0.00017042,87991.0,87975.0,0.0113741]
[1766129398881,0.00017042,87991.0,87974.0,0.00396]
[1766129398882,0.00017042,87991.0,87978.0,0.0113737]
[1766129399782,0.00017042,87991.0,87975.0,0.0113742]
[1766129400081,0.00017042,87991.0,87975.0,0.0170142]
[1766129400579,0.00017042,87991.0,87975.0,0.00564]
[1766129400779,0.00017042,87991.0,87976.0,0.011374]
[1766129401278,0.00017042,87991.0,87982.0,0.0113732]
[1766129401481,0.00017042,87991.0,87975.0,0.00564]
[1766129401482,0.00292,88001.0,87975.0,0.00564]
[1766129401673,0.00292,88001.0,87986.0,0.0113727]
[1766129401873,0.00292,88001.0,87985.0,0.00572]
[1766129402679,0.00292,88001.0,87965.0,9.897e-05]
[1766129402680,0.42693611,88000.0,87973.0,0.00284]
[1766129402868,0.0113717,87995.0,87971.0,0.0113747]
[1766129403183,0.00572,87994.0,87971.0,0.0113747]
[1766129403775,0.0113724,87989.0,87970.0,0.00092]
[1766129404082,0.0170918,87994.0,87970.0,0.00092]
[1766129404271,0.0113722,87991.0,87970.0,0.00092]
[1766129404471,0.00572,87994.0,87970.0,0.00092]
[1766129405890,0.00572,87994.0,87975.0,0.0113741]
[1766129406881,0.00572,87994.0,87978.0,0.0113738]
[1766129407085,0.00184,88000.0,87978.0,0.0113738]
[1766129407480,0.00184,88000.0,87981.0,0.0113734]
[1766129408184,0.00184,88000.0,87984.0,0.0113729]
[1766129408374,0.00017042,88002.0,87980.0,0.00368]
[1766129408375,0.00017042,88002.0,87986.0,0.0113727]
[1766129408574,0.00017042,88002.0,87989.0,0.0113724]
[1766129408882,0.00017042,88002.0,87990.0,0.00572]
[1766129410486,0.00017042,88002.0,87980.0,0.00452]
[1766129410681,0.42693611,87990.0,87967.0,0.0113752]
[1766129410883,0.42693611,87990.0,87970.0,0.0113748]
[1766129411186,0.43830841,87990.0,87968.0,0.00368]
[1766129411484,0.00572,87992.0,87969.0,0.0113749]
[1766129411981,0.00572,87992.0,87972.0,0.0113745]
[1766129412282,0.00572,87992.0,87970.0,0.00368]
[1766129412283,0.00572,87992.0,87975.0,0.0113741]
[1766129412783,0.00452,88000.0,87980.0,0.0113735]
[1766129413085,0.0113711,87999.0,87980.0,0.00368]
[1766129413873,0.0113712,87999.0,87980.0,0.00368]
[1766129415286,0.0113716,87995.0,87980.0,0.00368]
[1766129415487,0.0113712,87999.0,87980.0,0.00368]
[1766129415696,0.00017042,88002.0,87992.0,0.011372]
[1766129415981,0.06134418,88016.0,87998.0,0.0113712]
[1766129416283,0.06361646,88018.0,88001.0,0.0113708]
[1766129416489,0.0113688,88017.0,87993.0,0.0170918]
[1766129416678,0.06361646,88018.0,87993.0,0.0170918]
[1766129416879,0.00017042,88014.0,87997.0,0.00017042]
[1766129417986,0.0113698,88010.0,87987.0,0.0113725]
[1766129418175,0.0113706,88003.0,87988.0,0.00368]
[1766129418577,0.0113707,88002.0,87983.0,0.00572]
[1766129418881,0.0113696,88011.0,87983.0,0.00572]
[1766129419081,0.0113706,88004.0,87962.0,0.0300068]
[1766129419383,0.0113706,88004.0,87950.0,0.05997937]
[1766129419384,0.00017042,87993.0,87969.0,0.0113749]
[1766129419685,0.00017042,87993.0,87972.0,0.0113745]
[1766129419887,0.00017042,87993.0,87970.0,0.0113748]
[1766129420081,0.00017042,87993.0,87973.0,0.0113743]
[1766129420283,0.00017042,87993.0,87966.0,0.00572]
[1766129420284,0.00017042,87993.0,87977.0,0.0113739]
[1766129421086,0.00017042,87993.0,87975.0,0.0113742]
[1766129421480,0.00017042,87993.0,87970.0,0.0113747]
[1766129421891,0.00017042,87993.0,87971.0,0.00368]
[1766129422583,0.0113726,87988.0,87965.0,9.897e-05]
[1766129424284,0.0113731,87984.0,87954.0,0.01]
[1766129424782,0.00572,87989.0,87954.0,0.01]
[1766129424988,0.00572,87989.0,87942.0,0.0300068]
[1766129424989,0.0113757,87964.0,87942.0,0.0300068]
[1766129425287,0.42693611,87970.0,87938.0,0.00227434]
[1766129425288,0.011376,87961.0,87938.0,0.00227434]
[1766129425676,0.00017053,87962.0,87938.0,0.00227434]
[1766129426088,0.00017053,87962.0,87939.0,0.0113788]
[1766129427292,0.00017053,87962.0,87938.0,0.00227434]
[1766129427487,0.0113762,87960.0,87938.0,0.00227434]
[1766129427684,0.0113767,87956.0,87938.0,0.00227434]
[1766129427891,0.0056,87955.0,87938.0,0.00227434]
[1766129428087,0.011377,87954.0,87938.0,0.00227434]
[1766129428290,0.0113776,87949.0,87938.0,4.34e-06]
[1766129428489,9.075e-05,87948.0,87922.0,0.0300068]
[1766129428682,0.00017053,87944.0,87919.0,0.0300068]
[1766129428995,0.0113785,87942.0,87919.0,0.0300068]
[1766129429390,0.00017053,87944.0,87917.0,0.0400068]
[1766129429693,0.00017053,87944.0,87893.0,0.0800333]
[1766129429694,0.1243507,87941.0,87881.0,0.01]
[1766129429992,0.42693611,87900.0,87881.0,0.01]
[1766129430187,0.00572,87899.0,87870.0,0.00572]
[1766129430385,0.00589062,87899.0,87870.0,0.00572]
[1766129430591,0.02560079,87898.0,87870.0,0.00572]
[1766129430780,0.02572314,87897.0,87870.0,0.00572]
[1766129430983,0.02560079,87896.0,87864.0,0.00184]
[1766129431177,0.02560079,87896.0,87858.0,0.00227641]
[1766129431386,0.02560079,87896.0,87859.0,0.0038]
[1766129431692,0.02560079,87896.0,87858.0,0.00227641]
[1766129432293,0.02560079,87896.0,87859.0,0.00572]
[1766129432493,0.02560079,87896.0,87858.0,0.00227641]
[1766129432793,0.02560079,87896.0,87859.0,0.0038]
[1766129433399,0.0113846,87895.0,87859.0,0.0038]
[1766129433998,0.00012235,87897.0,87859.0,0.0038]
[1766129434186,0.02542654,87896.0,87859.0,0.0038]
[1766129434386,0.00012235,87897.0,87859.0,0.0038]
[1766129434595,0.02815401,87896.0,87859.0,0.0038]
[1766129434794,0.02815401,87895.0,87859.0,0.0038]
[1766129435092,0.02815401,87894.0,87859.0,0.0038]
[1766129435291,0.02815401,87893.0,87859.0,0.0038]
[1766129435498,0.02815401,87892.0,87859.0,0.0038]
[1766129435698,0.03387401,87891.0,87859.0,0.0038]
[1766129435990,0.00572,87891.0,87859.0,0.0038]
[1766129436396,0.00572,87891.0,87859.0,0.0151892]
[1766129438198,0.00572,87891.0,87861.0,0.0113889]
[1766129439000,0.00572,87891.0,87859.0,0.0038]
[1766129439001,0.00572,87891.0,87866.0,0.0113883]
[1766129439199,0.00572,87891.0,87860.0,0.0113891]
[1766129439399,0.00572,87891.0,87865.0,0.0113884]
[1766129439694,0.00572,87891.0,87860.0,0.0113891]
[1766129440202,0.00184,87890.0,87865.0,0.0113883]
[1766129440393,0.00184,87890.0,87860.0,0.42693611]
[1766129440589,0.0113855,87888.0,87859.0,0.0038]
[1766129440993,0.0113855,87888.0,87858.0,0.00227641]
[1766129441300,0.0113855,87888.0,87858.0,0.01366571]
[1766129441893,0.00184,87890.0,87858.0,0.01366571]
[1766129442500,0.0113855,87888.0,87858.0,0.01366571]
[1766129442691,0.00184,87890.0,87858.0,0.01366571]
[1766129442889,0.00012235,87897.0,87870.0,0.42693611]
[1766129443089,0.02802378,87896.0,87872.0,0.0113875]
[1766129443293,0.02802345,87895.0,87871.0,0.0113876]
[1766129443503,0.00012235,87897.0,87870.0,0.0160277]
[1766129443803,0.02802188,87896.0,87870.0,0.00464]
[1766129443994,0.02802188,87895.0,87870.0,0.00464]
[1766129444190,0.02802188,87894.0,87870.0,0.00464]
[1766129444385,0.02802322,87893.0,87870.0,0.00464]
[1766129444589,0.01150665,87897.0,87870.0,0.00464]
[1766129444798,0.02802322,87896.0,87870.0,0.00464]
[1766129444994,0.02802322,87895.0,87870.0,0.00464]
[1766129445198,0.02802322,87894.0,87870.0,0.00464]
[1766129445401,0.02802608,87893.0,87872.0,0.0113875]
[1766129445597,0.00012235,87897.0,87870.0,0.43157611]
[1766129445598,0.00572,87894.0,87870.0,0.43157611]
[1766129446099,0.00012235,87897.0,87870.0,0.43157611]
[1766129446100,0.00012235,87897.0,87884.0,0.0113859]
[1766129446298,0.00012235,87897.0,87888.0,0.0113854]
[1766129446299,5e-08,87897.0,87888.0,0.0113854]
[1766129446603,0.01,87914.0,87897.0,0.0113843]
[1766129446794,0.01,87914.0,87884.0,0.00017062]
[1766129446795,0.01,87914.0,87890.0,0.42693611]
[1766129446992,0.0612685,87933.0,87891.0,2.39704]
[1766129447200,0.00572,87932.0,87903.0,0.0113834]
[1766129447499,0.00017062,87926.0,87909.0,0.00017062]
[1766129448090,0.00017062,87926.0,87910.0,0.0113826]
[1766129449201,2e-08,87926.0,87915.0,0.0113819]
[1766129449501,2e-08,87926.0,87914.0,0.00572]
[1766129450800,1e-08,87934.0,87925.0,0.0113807]
[1766129450995,0.00572,87942.0,87923.0,0.00572]
[1766129451202,0.00572,87945.0,87929.0,0.0113801]
[1766129451395,0.08169134,87944.0,87923.0,0.00572]
[1766129451592,0.14158939,87966.0,87933.0,0.0113795]
[1766129451593,4e-08,87946.0,87933.0,0.0113795]
[1766129451812,0.00017062,87948.0,87934.0,0.00572]
[1766129452197,2e-08,87948.0,87935.0,0.0113793]
[1766129453108,0.10113528,87965.0,87948.0,0.0113777]
[1766129453305,0.00572,87966.0,87945.0,0.00564]
[1766129453500,0.00572,87966.0,87946.0,0.00572]
[1766129453906,2e-08,87965.0,87946.0,0.00572]
[1766129454212,2e-08,87965.0,87959.0,0.0113762]
[1766129454508,2e-08,87965.0,87959.0,0.00572]
[1766129455204,2e-08,87965.0,87960.0,0.0113761]
[1766129456910,2e-08,87965.0,87959.0,0.00572]
[1766129457106,2e-08,87965.0,87953.0,0.00017062]
[1766129457507,0.02635524,87964.0,87959.0,0.0113763]
[1766129457699,4e-08,87963.0,87954.0,0.00492]
[1766129457900,0.00227331,87978.0,87962.0,0.0113758]
[1766129458213,0.00227331,87978.0,87962.0,0.0170958]
[1766129458614,0.00227331,87978.0,87963.0,0.0113757]
[1766129459409,0.00227331,87978.0,87962.0,0.00572]
[1766129461110,0.00227331,87978.0,87961.0,0.00456]
[1766129461416,0.011374,87977.0,87961.0,0.00224]
[1766129461714,0.00227331,87978.0,87962.0,0.0113759]
[1766129462015,0.00227331,87978.0,87961.0,0.00017052]
[1766129463419,0.0113745,87973.0,87961.0,0.00017052]
[1766129463616,0.011374,87977.0,87961.0,2.3e-07]
[1766129464415,0.0113744,87974.0,87961.0,2.3e-07]
[1766129464805,0.00572,87973.0,87961.0,2.3e-07]
[1766129466008,0.00227331,87978.0,87961.0,2.3e-07]
[1766129466615,0.00227331,87978.0,87962.0,0.0113758]
[1766129466816,0.00227331,87978.0,87962.0,0.0170958]
[1766129467016,0.00227331,87978.0,87962.0,0.00572]
[1766129469221,0.00227331,87978.0,87962.0,0.00048927]
[1766129470322,0.00227331,87978.0,87963.0,0.0113757]
[1766129470615,0.00227331,87978.0,87962.0,0.00048927]
[1766129470820,0.06103273,87964.0,87962.0,0.00048927]
[1766129471023,0.06103273,87964.0,87962.0,4.209e-05]
[1766129471418,0.06103273,87963.0,87962.0,4.209e-05]
[1766129471720,3e-08,87963.0,87962.0,4.209e-05]
[1766129471919,0.0814114,87974.0,87962.0,4.209e-05]
[1766129472319,0.00227331,87978.0,87966.0,0.0113753]
[1766129472713,0.00227331,87978.0,87969.0,0.0113749]
[1766129473124,0.11164451,87987.0,87974.0,0.0113743]
[1766129473433,0.11164451,87987.0,87970.0,0.0113748]
[1766129473618,0.01,87987.0,87977.0,0.0113739]
[1766129473815,0.01,87987.0,87980.0,0.0113735]
[1766129474016,0.01,87987.0,87976.0,0.011374]
[1766129474716,0.0113711,87999.0,87961.0,2.3e-07]
[1766129474717,1e-08,87997.0,87987.0,0.0113726]
[1766129474920,0.14730939,88003.0,87990.0,0.0113722]
[1766129475121,0.00572,88003.0,87990.0,0.0113722]
[1766129475318,0.00572,88003.0,87986.0,0.0113727]
[1766129476022,0.00017052,88003.0,87986.0,0.01154322]
[1766129477218,0.00017052,88003.0,87986.0,0.00017052]
[1766129477416,2e-08,88003.0,87986.0,0.00017052]
[1766129477721,2e-08,88003.0,87996.0,0.0113714]
[1766129478122,2e-08,88003.0,87992.0,0.011372]
[1766129478322,2e-08,88003.0,87996.0,0.0113715]
[1766129479321,2e-08,88003.0,87994.0,0.00572]
[1766129479525,2e-08,88003.0,87994.0,0.00241905]
[1766129479719,2e-08,88003.0,87999.0,0.0113711]
[1766129480512,0.00227228,88018.0,88004.0,0.0113704]
[1766129480718,0.00227228,88018.0,88005.0,0.00572]
[1766129481027,0.00227228,88018.0,88005.0,0.00452]
[1766129482922,0.00227228,88018.0,87986.0,0.00017052]
[1766129482923,0.00227228,88018.0,87987.0,0.0113726]
[1766129483222,0.0113689,88016.0,87989.0,0.0113724]
[1766129483433,0.00227228,88018.0,87996.0,0.0113714]
[1766129483725,0.10206022,88016.0,88004.0,0.0113704]
[1766129483931,0.00227228,88018.0,88008.0,0.0113699]
[1766129484229,0.00227228,88018.0,88009.0,0.00572]
[1766129484427,0.00227228,88018.0,88004.0,0.00017052]
[1766129484730,0.0113688,88017.0,88005.0,0.00456]
[1766129485328,0.0113688,88017.0,88004.0,0.00572]
[1766129485627,0.0113688,88017.0,88004.0,0.00202762]
[1766129486232,0.0113695,88012.0,88003.0,0.00572]
[1766129486439,0.00227228,88018.0,87978.0,0.0113738]
[1766129486632,0.00227228,88018.0,87979.0,2.39444]
[1766129486825,0.00227228,88018.0,87978.0,0.0113738]
[1766129486826,0.29110145,88010.0,87978.0,0.0113738]